fUST/lending_fUST_20251114
["ID","MTS","AMOUNT","RATE_DAILY","PERIOD"]
[393900653,1763085043349,-37036.4251148,0.00034143,2]
[393900655,1763085043361,-901.39403023,0.00034143,2]
[393900658,1763085043374,-386.31,0.00034143,3]
[393900659,1763085043386,-193.15,0.00034143,3]
[393900660,1763085043397,-579.5,0.00034143,3]
[393900661,1763085043409,-500.0,0.00034168,4]
[393900662,1763085043421,-500.0,0.00034173,5]
[393900663,1763085043434,-500.0,0.00034173,5]
[393900664,1763085043446,-1545.23,0.00034225,3]
[393900665,1763085043459,-772.62,0.00034225,3]
[393900666,1763085043471,-3716.739679,0.00034235,2]
[393900667,1763085043484,-464.3982935,0.00034235,2]
[393900668,1763085043496,-193.8222883,0.00034242,2]
[393900669,1763085043509,-15789.8842531,0.00034266,2]
[393900670,1763085043520,-151.0,0.00034266,31]
[393900671,1763085043532,-151.0,0.00034266,30]
[393900672,1763085043546,-151.0,0.00034266,31]
[393900673,1763085043558,-151.0,0.00034266,30]
[393900674,1763085043570,-151.0,0.00034266,31]
[393900675,1763085043582,-150.0,0.00034273,5]
[393900676,1763085043594,-1656.19,0.00034333,10]
[393900677,1763085043607,-3647.42920713,0.00034343,2]
[393900678,1763085043618,-660.0,0.00034451,2]
[393900679,1763085043630,-500.0,0.00034514,4]
[393900680,1763085043642,-511.37612464,0.00034514,4]
[393900681,1763085043655,-236.18738376,0.00034515,2]
[393900682,1763085043664,-401.43341945,0.00034515,2]
[393900683,1763085043673,-458.32226975,0.00034515,2]
[393900684,1763085043684,-377.6657244,0.00034515,2]
[393900685,1763085043694,-431.61797075,0.00034515,2]
[393900686,1763085043703,-175.54163584,0.00034515,2]
[393900687,1763085043843,-315.97494452,0.00034515,2]
[393900688,1763085043853,-985.19559542,0.00034515,2]
[393900689,1763085043863,-1751.4588363,0.00034515,2]
[393900690,1763085043872,-2733.91777728,0.00034515,2]
[393900691,1763085043881,-305.79266223,0.00034515,2]
[393900692,1763085043890,-184.1063724,0.00034528,39]
[393900693,1763085043899,-3647.42920722,0.00034628,2]
[393900694,1763085043908,-151.0,0.00034649,7]
[393900695,1763085043918,-151.0,0.00034649,7]
[393900696,1763085043927,-151.0,0.00034649,31]
[393900697,1763085043936,-151.0,0.00034649,28]
[393900698,1763085043945,-160.284731,0.00034649,31]
[393900699,1763085043955,-151.0,0.00034649,31]
[393900700,1763085043964,-252.030444,0.00034649,31]
[393900701,1763085043974,-252.030444,0.00034649,31]
[393900702,1763085043984,-151.0,0.00034649,31]
[393900703,1763085043993,-188.277681,0.00034649,31]
[393900704,1763085044002,-847.376195,0.00034649,31]
[393900705,1763085044012,-252.030444,0.00034649,31]
[393900706,1763085044021,-151.0,0.00034649,31]
[393900707,1763085044031,-188.277681,0.00034649,31]
[393900708,1763085044048,-847.376195,0.00034649,31]
[393900709,1763085044058,-252.030444,0.00034649,31]
[393900710,1763085044067,-151.0,0.00034649,31]
[393900711,1763085044077,-188.277681,0.00034649,31]
[393900712,1763085044087,-847.376195,0.00034649,31]
[393900713,1763085044096,-151.0,0.00034649,31]
[393900714,1763085044105,-188.277681,0.00034649,31]
[393900715,1763085044115,-847.376195,0.00034649,31]
[393900716,1763085044123,-151.0,0.00034649,31]
[393900717,1763085044133,-151.0,0.00034649,31]
[393900718,1763085044142,-217.70748,0.00034649,31]
[393900719,1763085044152,-332.6798599,0.00034683,2]
[393900720,1763085044165,-151.0,0.00034706,31]
[393900721,1763085044174,-151.0,0.00034706,31]
[393900722,1763085044186,-298.776163,0.00034706,31]
[393900723,1763085044195,-151.0,0.00034706,31]
[393900724,1763085044205,-1000.0,0.00034721,5]
[393900725,1763085044215,-1000.0,0.00034721,5]
[393900726,1763085044224,-158.38189582,0.0003476,2]
[393900727,1763085044234,-250.0,0.00034821,5]
[393900728,1763085044244,-151.0,0.0003486,31]
[393900729,1763085044254,-151.0,0.0003486,31]
[393900730,1763085044264,-168.397826,0.0003486,31]
[393900731,1763085044273,-256.465549,0.0003486,31]
[393900732,1763085044283,-151.0,0.0003486,30]
[393900733,1763085044294,-151.0,0.0003486,31]
[393900734,1763085044303,-151.0,0.0003486,30]
[393900735,1763085044312,-151.0,0.0003486,31]
[393900736,1763085044322,-133981.27165017,0.0003486,2]
[393900737,1763085044348,-605.64509942,0.0003486,2]
[393900738,1763085046080,-157.563347,0.00034266,31]
[393900739,1763085046090,-9781.53022663,0.0003486,2]
[393900740,1763085075915,-177.0,0.0002589,2]
[393900741,1763085080876,200.0,0.00039593,30]
[393900743,1763085149320,3455.45,0.0003288,120]
[393900744,1763085316924,151.0,0.00039589,30]
[393900745,1763085318408,156.587,0.00039589,30]
[393900746,1763085319068,162.380719,0.00039589,30]
[393900747,1763085319770,168.3888056,0.00039589,30]
[393900748,1763085320422,174.61919141,0.00039589,30]
[393900749,1763085321028,181.08010149,0.00039589,30]
[393900750,1763085321628,187.78006525,0.00039589,30]
[393900751,1763085322256,194.72792766,0.00039589,30]
[393900752,1763085322912,201.93286099,0.00039589,30]
[393900753,1763085323553,209.40437684,0.00039589,30]
[393900754,1763085324208,217.15233878,0.00039589,30]
[393900755,1763085325403,225.18697532,0.00039589,30]
[393900756,1763085326031,233.51889341,0.00039589,30]
[393900757,1763085326639,242.15909246,0.00039589,30]
[393900758,1763085327272,251.11897888,0.00039589,30]
[393900759,1763085327891,260.4103811,0.00039589,30]
[393900760,1763085328563,270.0455652,0.00039589,30]
[393900761,1763085329167,280.03725112,0.00039589,30]
[393900762,1763085329811,290.39862941,0.00039589,30]
[393900763,1763085330445,290.39862941,0.00039589,30]
[393900764,1763085390906,-204.0,0.0002589,2]
[393900768,1763085495820,-150.0,0.0002884,2]
[393900771,1763085594482,362.0,0.00039591,120]
[393900785,1763085742279,3733.44508067,0.00039591,120]
[393900786,1763085760987,-150.0,0.0002886,2]
[393900791,1763085793296,563.81567639,0.00039591,30]
[393900797,1763085828433,330.0,0.00039591,120]
[393900798,1763085864539,306.0,0.00039591,120]
[393900801,1763085908987,1870.0594293,0.00039591,60]
[393900802,1763085910447,469.19,0.0003288,120]
[393900803,1763085911901,151.0,0.00039591,120]
[393900804,1763085912533,156.587,0.00039591,120]
[393900805,1763085913157,162.380719,0.00039591,120]
[393900806,1763085913885,168.3888056,0.00039591,120]
[393900807,1763085914526,174.61919141,0.00039591,120]
[393900808,1763085915233,181.08010149,0.00039591,120]
[393900809,1763085915770,187.78006525,0.00039591,120]
[393900810,1763085916507,194.72792766,0.00039591,120]
[393900811,1763085917008,201.93286099,0.00039591,120]
[393900812,1763085918095,209.40437684,0.00039591,120]
[393900813,1763085918734,217.15233878,0.00039591,120]
[393900814,1763085919355,225.18697532,0.00039591,120]
[393900815,1763085919977,233.51889341,0.00039591,120]
[393900816,1763085920603,242.15909246,0.00039591,120]
[393900817,1763085921207,251.11897888,0.00039591,120]
[393900818,1763085921847,260.4103811,0.00039591,120]
[393900819,1763085922465,270.0455652,0.00039591,120]
[393900820,1763085923158,280.03725112,0.00039591,120]
[393900821,1763085923814,290.39862941,0.00039591,120]
[393900822,1763085924424,290.39862941,0.00039591,120]
[393900827,1763085987123,151.0,0.00039591,120]
[393900828,1763085987729,151.0,0.00039591,120]
[393900829,1763085988436,151.0,0.00039591,120]
[393900830,1763085989004,151.0,0.00039591,120]
[393900831,1763085989603,151.0,0.00039591,120]
[393900832,1763085990199,151.0,0.00039591,120]
[393900833,1763085990805,151.0,0.00039591,120]
[393900837,1763085991444,151.0,0.00039591,120]
[393900838,1763085992119,151.0,0.00039591,120]
[393900839,1763085993807,151.0,0.00039591,120]
[393900840,1763085994598,151.0,0.00039591,120]
[393900841,1763085995203,151.0,0.00039591,120]
[393900842,1763085995823,151.0,0.00039591,120]
[393900847,1763086037010,-222.18846757,0.00028776,2]
[393900848,1763086057162,-150.0,0.00028876,2]
[393900853,1763086158139,-150.0,0.00028877,2]
[393900857,1763086207923,150.0,0.00028918,2]
[393900858,1763086217435,151.0,0.00039594,120]
[393900859,1763086218040,156.587,0.00039594,120]
[393900860,1763086218657,162.380719,0.00039594,120]
[393900861,1763086219270,168.3888056,0.00039594,120]
[393900862,1763086219889,174.61919141,0.00039594,120]
[393900863,1763086220488,181.08010149,0.00039594,120]
[393900864,1763086221116,187.78006525,0.00039594,120]
[393900865,1763086221716,194.72792766,0.00039594,120]
[393900866,1763086222323,201.93286099,0.00039594,120]
[393900867,1763086222931,209.40437684,0.00039594,120]
[393900868,1763086223668,217.15233878,0.00039594,120]
[393900869,1763086224309,225.18697532,0.00039594,120]
[393900870,1763086224909,233.51889341,0.00039594,120]
[393900871,1763086225558,242.15909246,0.00039594,120]
[393900872,1763086226150,251.11897888,0.00039594,120]
[393900873,1763086226857,260.4103811,0.00039594,120]
[393900874,1763086227485,270.0455652,0.00039594,120]
[393900875,1763086228146,280.03725112,0.00039594,120]
[393900876,1763086228754,290.39862941,0.00039594,120]
[393900877,1763086229368,290.39862941,0.00039594,120]
[393900900,1763086232000,-328.91528623,0.00030876,2]
[393900901,1763086232009,-360.24635623,0.00031195,30]
[393900903,1763086232021,-21.28837567,0.00031195,30]
[393900904,1763086232030,-484.856583,0.00031225,2]
[393900905,1763086232039,-1000.0,0.00031483,30]
[393900906,1763086232048,-150.0,0.00031547,2]
[393900907,1763086232057,-309.36405689,0.00031876,4]
[393900908,1763086232068,-254.70598016,0.00031876,4]
[393900909,1763086232077,-328.91528623,0.00032752,2]
[393900910,1763086232087,-303.0,0.00033172,3]
[393900911,1763086232097,-400.0,0.00033172,2]
[393900912,1763086232106,-303.0,0.00033172,3]
[393900913,1763086232116,-1600.0,0.00033172,3]
[393900914,1763086232125,-3017.95553623,0.00033173,2]
[393900915,1763086232135,-1600.0,0.00033252,3]
[393900916,1763086232144,-10533.47480362,0.00033253,2]
[393900917,1763086232170,-10547.4440633,0.00033253,2]
[393900918,1763086232179,-157.19454872,0.00033273,5]
[393900919,1763086232189,-170.52521272,0.00033273,5]
[393900920,1763086232199,-502.34560399,0.00033273,5]
[393900921,1763086232209,-381.44046209,0.00033273,5]
[393900922,1763086232219,-452.04812161,0.00033273,5]
[393900923,1763086232229,-500.20013611,0.00033273,5]
[393900924,1763086232238,-500.0,0.00033273,5]
[393900925,1763086232247,-1065.19712554,0.00033293,2]
[393900926,1763086232256,-500.0,0.00033353,2]
[393900927,1763086232265,-500.0,0.00033353,2]
[393900928,1763086232274,-3660.00440055,0.0003342,2]
[393900929,1763086232282,-160.0,0.00033433,2]
[393900930,1763086232291,-3660.00440055,0.00033592,2]
[393900931,1763086232300,-507.03,0.00033669,3]
[393900932,1763086232309,-253.52,0.00033669,3]
[393900933,1763086232317,-760.58,0.00033669,3]
[393900934,1763086232326,-958.44,0.00033669,10]
[393900935,1763086232335,-1673.24,0.00033669,10]
[393900936,1763086232344,-500.0,0.00033673,5]
[393900937,1763086232353,-500.0,0.00033673,5]
[393900938,1763086232365,-266.22118701,0.00033678,7]
[393900939,1763086232375,-176.71593904,0.00033678,7]
[393900940,1763086232383,-500.0,0.00033678,7]
[393900941,1763086232392,-14888.3140758,0.00033679,2]
[393900952,1763086237961,-500.0,0.00033668,7]
[393900953,1763086237971,-500.0,0.00033668,7]
[393900954,1763086237980,-500.0,0.00033668,7]
[393900955,1763086237989,-500.0,0.00033668,7]
[393900956,1763086237999,-500.0,0.00033668,7]
[393900957,1763086238008,-500.0,0.00033668,7]
[393900958,1763086238017,-500.0,0.00033668,7]
[393900959,1763086238026,-500.0,0.00033668,7]
[393900960,1763086238035,-500.0,0.00033668,7]
[393900961,1763086238049,-500.0,0.00033668,7]
[393900962,1763086238059,-500.0,0.00033668,7]
[393900963,1763086238069,-500.0,0.00033668,7]
[393900964,1763086238079,-500.0,0.00033668,7]
[393900965,1763086238088,-500.0,0.00033668,7]
[393900966,1763086238098,-500.0,0.00033668,7]
[393900967,1763086238108,-500.0,0.00033668,7]
[393900968,1763086238118,-500.0,0.00033668,7]
[393900969,1763086238128,-615.0,0.00033668,7]
[393900970,1763086238137,-500.0,0.00033668,7]
[393900971,1763086238147,-500.0,0.00033668,7]
[393900972,1763086238157,-380.30124255,0.00033668,7]
[393900973,1763086238169,-119.69875745,0.00033668,7]
[393900974,1763086238178,-500.0,0.00033668,7]
[393900975,1763086238188,-219.83004398,0.00033678,7]
[393900976,1763086238198,-15421.71624673,0.00033679,2]
[393901015,1763086240219,-1000.0,0.00033679,2]
[393901092,1763086243256,-1394.37,0.00033669,10]
[393901093,1763086243266,-245306.11881959,0.00033679,2]
[393901099,1763086273543,150.0,0.00029301,2]
[393901110,1763086304965,150.0,0.0002589,2]
[393901111,1763086305353,177.0,0.0002789,2]
[393901145,1763086332309,646.0,0.0003288,120]
[393901154,1763086510789,151.0,0.00039613,120]
[393901155,1763086511453,156.587,0.00039613,120]
[393901156,1763086512087,162.380719,0.00039613,120]
[393901157,1763086512720,168.3888056,0.00039613,120]
[393901158,1763086513869,174.61919141,0.00039613,120]
[393901159,1763086514618,181.08010149,0.00039613,120]
[393901160,1763086515240,187.78006525,0.00039613,120]
[393901161,1763086515891,194.72792766,0.00039613,120]
[393901162,1763086516573,201.93286099,0.00039613,120]
[393901163,1763086517216,209.40437684,0.00039613,120]
[393901164,1763086517835,217.15233878,0.00039613,120]
[393901165,1763086518587,225.18697532,0.00039613,120]
[393901166,1763086519098,233.51889341,0.00039613,120]
[393901167,1763086519710,242.15909246,0.00039613,120]
[393901168,1763086520399,251.11897888,0.00039613,120]
[393901169,1763086520963,260.4103811,0.00039613,120]
[393901170,1763086521574,270.0455652,0.00039613,120]
[393901171,1763086522196,280.03725112,0.00039613,120]
[393901172,1763086522798,290.39862941,0.00039613,120]
[393901173,1763086523404,290.39862941,0.00039613,120]
[393901175,1763086536154,176.13485,0.00013699,2]
[393901176,1763086536410,176.13485,0.00020187,2]
[393901178,1763086806123,155.96429163,0.0003288,120]
[393901180,1763086813554,151.0,0.00039589,120]
[393901181,1763086814192,156.587,0.00039589,120]
[393901182,1763086814824,162.380719,0.00039589,120]
[393901183,1763086815458,168.3888056,0.00039589,120]
[393901184,1763086816097,174.61919141,0.00039589,120]
[393901185,1763086817942,181.08010149,0.00039589,120]
[393901186,1763086818596,187.78006525,0.00039589,120]
[393901187,1763086819281,194.72792766,0.00039589,120]
[393901188,1763086819890,201.93286099,0.00039589,120]
[393901189,1763086820732,209.40437684,0.00039589,120]
[393901190,1763086821350,217.15233878,0.00039589,120]
[393901191,1763086822025,225.18697532,0.00039589,120]
[393901192,1763086822635,233.51889341,0.00039589,120]
[393901193,1763086823271,242.15909246,0.00039589,120]
[393901194,1763086823904,251.11897888,0.00039589,120]
[393901195,1763086824540,260.4103811,0.00039589,120]
[393901196,1763086825211,270.0455652,0.00039589,120]
[393901197,1763086825809,300.0,0.000202,20]
[393901198,1763086825872,280.03725112,0.00039589,120]
[393901199,1763086826511,290.39862941,0.00039589,120]
[393901200,1763086827168,290.39862941,0.00039589,120]
[393901201,1763086835805,300.0,0.000202,7]
[393901202,1763086844995,300.0,0.000202,7]
[393901203,1763086854534,300.0,0.000202,2]
[393901228,1763087064770,5595.0,0.0002,2]
[393901229,1763087094395,-150.0,0.00025214,2]
[393901230,1763087094422,-475.3432274,0.00025243,2]
[393901231,1763087094450,-176.13485,0.00026676,2]
[393901232,1763087094476,-500.0,0.0002715,2]
[393901233,1763087094503,-500.0,0.0002715,2]
[393901234,1763087094533,-177.0,0.00027214,2]
[393901235,1763087094559,-520.01299405,0.00027698,5]
[393901236,1763087094585,-1000.0,0.00027698,5]
[393901237,1763087094611,-1487.61015678,0.00028246,5]
[393901238,1763087094967,-27.80754354,0.00028246,5]
[393901239,1763087094993,-335.3641694,0.00028515,2]
[393901240,1763087095023,-4018.26770022,0.0002853,2]
[393901241,1763087097339,-1237.13117368,0.0002853,2]
[393901242,1763087100471,-5184.85582942,0.0002853,2]
[393901243,1763087100584,-4815.15417058,0.0002853,2]
[393901244,1763087100611,-160.0,0.00028714,2]
[393901245,1763087100655,-49.70165884,0.00028922,2]
[393901247,1763087103744,-1200.0,0.00028923,2]
[393901248,1763087103780,-150.0,0.00028925,2]
[393901249,1763087103813,-260.0,0.00029262,2]
[393901250,1763087103841,-169.99852,0.00029343,60]
[393901251,1763087103870,-360.0,0.0002981,2]
[393901255,1763087111133,151.0,0.00039593,120]
[393901256,1763087111756,156.587,0.00039593,120]
[393901257,1763087112431,162.380719,0.00039593,120]
[393901258,1763087113085,168.3888056,0.00039593,120]
[393901259,1763087113930,174.61919141,0.00039593,120]
[393901260,1763087114506,181.08010149,0.00039593,120]
[393901261,1763087115128,187.78006525,0.00039593,120]
[393901262,1763087115787,194.72792766,0.00039593,120]
[393901263,1763087116445,201.93286099,0.00039593,120]
[393901264,1763087117080,209.40437684,0.00039593,120]
[393901265,1763087117717,217.15233878,0.00039593,120]
[393901266,1763087118363,225.18697532,0.00039593,120]
[393901267,1763087119033,233.51889341,0.00039593,120]
[393901268,1763087119898,242.15909246,0.00039593,120]
[393901270,1763087120531,251.11897888,0.00039593,120]
[393901271,1763087121204,260.4103811,0.00039593,120]
[393901272,1763087121818,270.0455652,0.00039593,120]
[393901273,1763087124794,280.03725112,0.00039593,120]
[393901274,1763087125416,290.39862941,0.00039593,120]
[393901276,1763087126505,290.39862941,0.00039593,120]
[393901303,1763087273588,2932.56840782,0.00039593,60]
[393901310,1763087302004,1292.63543686,0.00039593,60]
[393901311,1763087303098,816.19685694,0.00039593,120]
[393901312,1763087303752,775.70285553,0.00039593,120]
[393901313,1763087306124,251.01199542,0.00024,60]
[393901314,1763087307703,3940.12269131,0.00039593,30]
[393901316,1763087308529,1423.56906607,0.00039593,120]
[393901332,1763087314925,976.40429262,0.00025,2]
[393901334,1763087317784,1928.92877063,0.00039593,30]
[393901338,1763087365111,-380.38864148,0.00025243,2]
[393901339,1763087365133,-174.59733853,0.00029198,5]
[393901340,1763087403320,174.59733852,0.00029198,5]
[393901341,1763087409172,151.0,0.00039593,120]
[393901342,1763087409909,156.587,0.00039593,120]
[393901343,1763087410473,162.380719,0.00039593,120]
[393901344,1763087411409,168.3888056,0.00039593,120]
[393901345,1763087412023,174.61919141,0.00039593,120]
[393901346,1763087412676,181.08010149,0.00039593,120]
[393901347,1763087413333,187.78006525,0.00039593,120]
[393901348,1763087413962,194.72792766,0.00039593,120]
[393901349,1763087414573,201.93286099,0.00039593,120]
[393901350,1763087415181,209.40437684,0.00039593,120]
[393901352,1763087415845,217.15233878,0.00039593,120]
[393901353,1763087416469,225.18697532,0.00039593,120]
[393901354,1763087417164,233.51889341,0.00039593,120]
[393901355,1763087417723,242.15909246,0.00039593,120]
[393901356,1763087418339,251.11897888,0.00039593,120]
[393901357,1763087418987,260.4103811,0.00039593,120]
[393901358,1763087419609,270.0455652,0.00039593,120]
[393901359,1763087420215,280.03725112,0.00039593,120]
[393901360,1763087420820,290.39862941,0.00039593,120]
[393901361,1763087421479,290.39862941,0.00039593,120]
[393901415,1763087438196,-729.20098443,0.00029899,2]
[393901416,1763087438206,-1766.17921,0.00029899,2]
[393901614,1763087444202,-145.33089978,0.00029899,2]
[393901615,1763087444212,-475.14568748,0.00029899,2]
[393901616,1763087444221,-502.65639964,0.00029973,5]
[393901617,1763087444230,-300.0,0.00029988,2]
[393901618,1763087444239,-1200.0,0.00029988,2]
[393901619,1763087444248,-968.31,0.00029988,10]
[393901620,1763087444258,-645.86,0.00029989,3]
[393901621,1763087444268,-322.93,0.00029989,3]
[393901622,1763087444279,-161.46,0.00029989,3]
[393901623,1763087444287,-484.42,0.00029989,3]
[393901624,1763087444296,-1394.37,0.00029989,10]
[393901625,1763087444306,-1161.97,0.00029989,10]
[393901626,1763087444315,-1291.71,0.0002999,3]
[393901627,1763087444325,-503.88103079,0.00029998,2]
[393901628,1763087444335,-186.35483091,0.00029998,2]
[393901629,1763087444344,-500.0,0.00029998,2]
[393901630,1763087444354,-500.0,0.00029998,2]
[393901631,1763087444363,-500.0,0.00029998,2]
[393901633,1763087444372,-2213.01135375,0.00029998,2]
[393901635,1763087444382,-500.0,0.00029998,2]
[393901637,1763087444391,-500.0,0.00029998,2]
[393901639,1763087444400,-597.28318126,0.00029998,2]
[393901640,1763087444409,-2213.01135375,0.00029998,2]
[393901641,1763087444418,-500.0,0.00029998,2]
[393901642,1763087444428,-500.0,0.00029998,2]
[393901643,1763087444438,-500.0,0.00029998,2]
[393901644,1763087444447,-500.0,0.00029998,2]
[393901645,1763087444456,-563.35396077,0.00029998,2]
[393901646,1763087444465,-2213.01135375,0.00029998,2]
[393901647,1763087444474,-500.0,0.00029998,2]
[393901648,1763087444484,-500.0,0.00029998,2]
[393901649,1763087444493,-2213.01135375,0.00029998,2]
[393901650,1763087444503,-500.0,0.00029998,2]
[393901651,1763087444513,-500.0,0.00029998,2]
[393901652,1763087444522,-2213.01135375,0.00029998,2]
[393901653,1763087444532,-500.0,0.00029998,2]
[393901654,1763087444541,-500.0,0.00029998,2]
[393901655,1763087444549,-2213.01135375,0.00029998,2]
[393901656,1763087444559,-500.0,0.00029998,2]
[393901657,1763087444567,-500.0,0.00029998,2]
[393901658,1763087444576,-2213.01135375,0.00029998,2]
[393901659,1763087444585,-500.0,0.00029998,2]
[393901660,1763087444595,-461.59730202,0.00029998,2]
[393901661,1763087444603,-500.0,0.00029998,2]
[393901662,1763087444612,-500.0,0.00029998,2]
[393901663,1763087444621,-2213.01135375,0.00029998,2]
[393901664,1763087444630,-500.0,0.00029998,2]
[393901665,1763087444639,-2213.01135375,0.00029998,2]
[393901666,1763087444649,-500.0,0.00029998,2]
[393901667,1763087444658,-500.0,0.00029998,2]
[393901668,1763087444666,-500.0,0.00029998,2]
[393901669,1763087444675,-2213.01135375,0.00029998,2]
[393901670,1763087444685,-2213.01135375,0.00029998,2]
[393901671,1763087444694,-500.0,0.00029998,2]
[393901672,1763087444702,-592.69627268,0.00029998,2]
[393901673,1763087444711,-2213.01135375,0.00029998,2]
[393901674,1763087444720,-500.0,0.00029998,2]
[393901675,1763087444729,-500.0,0.00029998,2]
[393901676,1763087444739,-2213.01135375,0.00029998,2]
[393901677,1763087444749,-500.0,0.00029998,2]
[393901678,1763087444758,-2213.01135375,0.00029998,2]
[393901679,1763087444767,-500.0,0.00029998,2]
[393901680,1763087444776,-500.0,0.00029998,2]
[393901681,1763087444786,-2213.01135375,0.00029998,2]
[393901682,1763087444795,-500.0,0.00029998,2]
[393901683,1763087444804,-500.0,0.00029998,2]
[393901684,1763087444813,-2213.01135375,0.00029998,2]
[393901685,1763087444822,-500.0,0.00029998,2]
[393901686,1763087444831,-2213.01135375,0.00029998,2]
[393901687,1763087444840,-500.0,0.00029998,2]
[393901688,1763087444942,-500.0,0.00029998,2]
[393901689,1763087444953,-2213.01135375,0.00029998,2]
[393901690,1763087444963,-500.0,0.00029998,2]
[393901691,1763087444973,-2213.01135375,0.00029998,2]
[393901692,1763087444983,-500.0,0.00029998,2]
[393901693,1763087444994,-500.0,0.00029998,2]
[393901694,1763087445003,-2213.01135375,0.00029998,2]
[393901695,1763087445012,-2213.01135375,0.00029998,2]
[393901696,1763087445021,-500.0,0.00029998,2]
[393901697,1763087445030,-500.0,0.00029998,2]
[393901698,1763087445039,-2213.01135375,0.00029998,2]
[393901699,1763087445048,-500.0,0.00029998,2]
[393901700,1763087445058,-2213.01135375,0.00029998,2]
[393901701,1763087445067,-500.0,0.00029998,2]
[393901702,1763087445076,-500.0,0.00029998,2]
[393901703,1763087445085,-500.0,0.00029998,2]
[393901704,1763087445094,-2213.01135375,0.00029998,2]
[393901705,1763087445103,-2213.01135375,0.00029998,2]
[393901706,1763087445111,-500.0,0.00029998,2]
[393901707,1763087445120,-2213.01135375,0.00029998,2]
[393901708,1763087445129,-500.0,0.00029998,2]
[393901709,1763087445137,-2213.01135375,0.00029998,2]
[393901710,1763087445146,-2213.01135375,0.00029998,2]
[393901711,1763087445155,-500.0,0.00029998,2]
[393901712,1763087445164,-2213.01135375,0.00029998,2]
[393901713,1763087445173,-226.37535133,0.00029998,2]
[393901714,1763087445182,-2213.01135375,0.00029998,2]
[393901715,1763087445190,-2213.01135375,0.00029998,2]
[393901716,1763087445199,-2213.01135375,0.00029998,2]
[393901717,1763087445208,-2213.01135375,0.00029998,2]
[393901718,1763087445216,-2213.01135375,0.00029998,2]
[393901719,1763087445225,-2213.01135375,0.00029998,2]
[393901720,1763087445234,-2213.01135375,0.00029998,2]
[393901721,1763087445242,-2213.01135375,0.00029998,2]
[393901722,1763087445251,-2213.01135375,0.00029998,2]
[393901723,1763087445260,-2213.01135375,0.00029998,2]
[393901724,1763087445269,-2213.01135375,0.00029998,2]
[393901725,1763087445280,-2213.01135375,0.00029998,2]
[393901726,1763087445290,-2213.01135375,0.00029998,2]
[393901727,1763087445299,-2213.01135375,0.00029998,2]
[393901728,1763087445307,-2213.01135375,0.00029998,2]
[393901729,1763087445317,-2213.01135375,0.00029998,2]
[393901730,1763087445325,-2213.01135375,0.00029998,2]
[393901731,1763087445334,-2213.01135375,0.00029998,2]
[393901732,1763087445343,-2213.01135375,0.00029998,2]
[393901733,1763087445353,-2213.01135375,0.00029998,2]
[393901734,1763087445362,-2213.01135375,0.00029998,2]
[393901735,1763087445371,-2213.01135375,0.00029998,2]
[393901736,1763087445380,-2213.01135375,0.00029998,2]
[393901737,1763087445389,-2213.01135375,0.00029998,2]
[393901738,1763087445399,-2213.01135375,0.00029998,2]
[393901739,1763087445408,-2213.01135375,0.00029998,2]
[393901740,1763087445417,-2213.01135375,0.00029998,2]
[393901741,1763087445427,-2213.01135375,0.00029998,2]
[393901742,1763087445436,-2213.01135375,0.00029998,2]
[393901743,1763087445445,-2213.01135375,0.00029998,2]
[393901744,1763087445454,-2213.01135375,0.00029998,2]
[393901745,1763087445465,-2213.01135375,0.00029998,2]
[393901746,1763087445474,-2213.01135375,0.00029998,2]